bitfinex-derivatives/quotes_SOLF0:USTF0_20250818
["timestamp","ask_amount","ask_price","bid_price","bid_amount"]
[1755510792090,2.94,181.6,181.57,2.9]
[1755510792293,2.94,181.59,181.57,2.9]
[1755510792485,2.94,181.59,181.58,2.9]
[1755510792986,370.12,181.61,181.54,5.54411701]
[1755510793187,3.90468204,181.6,181.59,2.9]
[1755510793486,373.06,181.61,181.6,2.9]
[1755510793687,376.96357026,181.61,181.6,2.9]
[1755510794283,374.02357026,181.61,181.6,2.9]
[1755510794479,376.96357026,181.61,181.6,2.9]
[1755510794679,2.94,181.61,181.6,2.9]
[1755510796092,2.94,181.61,181.55,5.5051]
[1755510796293,2.94,181.6,181.59,2.9]
[1755510796892,2.94,181.62,181.55,2.9]
[1755510797293,2.94,181.62,181.55,8.4051]
[1755510797490,2.94,181.62,181.56,2.9]
[1755510798094,150.06,181.63,181.57,5.5043]
[1755510798293,153.0,181.63,181.58,2.9]
[1755510798494,150.06,181.63,181.58,2.9]
[1755510798694,2.94,181.61,181.58,2.9]
[1755510800803,2.94,181.7,181.6,4.55046685]
[1755510800996,2.94,181.68,181.61,8.4031]
[1755510801195,2.94,181.68,181.58,2.9]
[1755510801398,2.94,181.68,181.6,2.9]
[1755510801593,2.94,181.68,181.61,2.9]
[1755510802198,2.94,181.68,181.61,8.4031]
[1755510802400,2.94,181.68,181.62,2.98]
[1755510803994,149.78,181.69,181.63,2.98]
[1755510804707,149.78,181.69,181.63,5.5025]
[1755510804900,152.8,181.69,181.64,2.98]
[1755510805102,3.02,181.68,181.64,2.98]
[1755510805899,149.78,181.69,181.64,2.98]
[1755510806105,3.02,181.68,181.63,2.98]
[1755510806301,3.02,181.68,181.61,219.5032]
[1755510806501,3.02,181.68,181.65,2.98]
[1755510807107,3.02,181.68,181.61,214.0]
[1755510807108,152.8,181.69,181.62,2.98]
[1755510807511,3.02,181.68,181.62,2.98]
[1755510808411,3.02,181.68,181.6,2.98]
[1755510811715,3.02,181.65,181.57,2.98]
[1755510811920,3.02,181.63,181.57,2.98]
[1755510817220,3.02,181.62,181.57,2.98]
[1755510818723,3.02,181.62,181.53,214.0]
[1755510818917,3.02,181.62,181.54,2.98]
[1755510821226,3.02,181.62,181.54,5.5054]
[1755510821422,3.02,181.62,181.55,2.98]
[1755510831231,149.36,181.64,181.55,2.98]
[1755510831532,3.02,181.62,181.55,2.98]
[1755510833233,3.02,181.62,181.56,2.92]
[1755510834137,3.02,181.62,181.57,2.92]
[1755510834336,152.4,181.64,181.57,2.92]
[1755510834727,152.4,181.64,181.57,8.4245]
[1755510834931,152.4,181.64,181.58,2.92]
[1755510835933,149.36,181.64,181.58,2.92]
[1755510836338,152.4,181.64,181.58,2.92]
[1755510837140,3.04,181.63,181.58,2.92]
[1755510837839,149.36,181.64,181.58,2.92]
[1755510838041,3.04,181.62,181.58,2.92]
[1755510838243,149.36,181.64,181.6,2.92]
[1755510838730,149.36,181.64,181.6,5.5036]
[1755510838934,3.04,181.68,181.62,2.92]
[1755510839137,3.04,181.66,181.62,2.92]
[1755510839539,148.46,181.69,181.62,2.92]
[1755510839739,3.04,181.67,181.62,2.92]
[1755510839932,3.89673277,181.66,181.62,2.92]
[1755510840137,3.04,181.65,181.62,2.92]
[1755510841440,3.04,181.64,181.62,2.92]
[1755510842039,148.46,181.69,181.62,2.92]
[1755510842238,3.04,181.66,181.62,2.92]
[1755510842433,3.04,181.65,181.62,2.92]
[1755510842943,3.04,181.68,181.62,2.92]
[1755510843244,3.04,181.66,181.62,2.92]
[1755510844243,3.04,181.66,181.59,2.92]
[1755510844840,3.04,181.66,181.57,5.5044]
[1755510845036,4.55046685,181.68,77.645,2.75523152]
[1755510845037,4.55046685,181.61,181.53,2.92]
[1755510845238,3.04,181.57,181.53,2.92]
[1755510845438,3.04,181.57,181.46,2.92]
[1755510845739,3.04,181.57,181.48,2.92]
[1755510846843,4.55046685,181.61,181.48,2.92]
[1755510847045,3.04,181.59,181.51,2.92]
[1755510847637,3.04,181.6,181.51,2.92]
[1755510847833,3.04,181.6,181.52,5.5059]
[1755510848034,10.69572565,181.69,181.57,2.92]
[1755510848241,3.04,181.65,181.57,2.92]
[1755510848443,3.93263584,181.64,181.59,2.92]
[1755510848743,3.04,181.64,181.59,2.92]
[1755510848947,3.04,181.63,181.59,2.92]
[1755510849742,3.04,181.67,181.59,2.92]
[1755510850441,7.59046685,181.65,181.59,2.92]
[1755510850742,3.04,181.63,181.54,2.92]
[1755510851044,3.04,181.58,181.51,2.92]
[1755510851241,4.55046685,181.58,181.51,2.92]
[1755510851447,6.97754248,181.57,181.51,2.92]
[1755510851638,3.04,181.57,181.51,2.92]
[1755510852850,3.04,181.55,181.47,2.92]
[1755510854550,3.04,181.55,181.48,2.92]
[1755510854754,3.04,181.6,181.48,2.92]
[1755510854948,8.39713435,181.59,181.5,8.4264]
[1755510855250,11.43713435,181.58,181.51,2.92]
[1755510855452,3.936866,181.57,181.51,2.92]
[1755510855644,3.04,181.58,181.51,2.92]
[1755510855844,6.97660873,181.57,181.51,2.92]
[1755510856045,148.1,181.63,181.51,2.92]
[1755510856241,8.39503027,181.62,181.51,2.92]
[1755510856446,3.04,181.6,181.51,2.92]
[1755510856647,3.04,181.6,181.44,13.71707402]
[1755510856648,3.04,181.6,181.52,4.55046685]
[1755510856846,3.04,181.6,181.53,2.92]
[1755510857249,3.04,181.6,181.46,10.64878542]
[1755510857552,3.04,181.58,181.51,2.92]
[1755510857755,3.04,181.57,181.51,2.92]
[1755510857955,3.04,181.57,181.53,0.03482338]
[1755510859048,3.04,181.56,181.53,0.03482338]
[1755510859254,4.55046685,181.62,181.53,0.03482338]
[1755510859453,4.4583973,181.61,181.54,2.92]
[1755510859649,3.04,181.6,181.54,2.92]
[1755510859850,3.04,181.6,181.56,0.03527085]
[1755510860052,3.04,181.6,181.57,2.92]
[1755510861650,3.04,181.6,181.56,0.03527085]
[1755510862255,3.0,181.58,181.56,0.03527085]
[1755510863845,7.07466238,181.62,181.56,0.03527085]
[1755510864056,3.0,181.57,181.56,0.03527085]
[1755510866058,7.57569401,181.57,181.56,0.03527085]
[1755510867765,3.0,181.56,181.46,2.99]
[1755510867959,3.0,181.54,181.46,2.99]
[1755510868458,4.57438429,181.53,181.46,2.99]
[1755510868650,3.0,181.52,181.46,2.99]
[1755510869161,3.0,181.5,181.46,2.99]
[1755510869658,0.04048612,181.51,181.46,2.99]
[1755510869858,3.04048612,181.51,181.46,2.99]
[1755510870658,0.04048612,181.51,181.46,2.99]
[1755510871256,0.04048612,181.51,181.47,2.99]
[1755510871762,0.04048612,181.51,181.48,2.99]
[1755510873158,0.04048612,181.51,181.49,2.99]
[1755510877658,0.04048612,181.51,181.49,214.0]
[1755510877858,0.04048612,181.51,181.5,2.99]
[1755510878261,3.0,181.58,181.5,3.55]
[1755510878458,3.0,181.58,181.53,5.5057]
[1755510878759,3.0,181.6,181.54,2.99]
[1755510879158,3.0,181.6,181.55,2.99]
[1755510879565,3.0,181.6,181.55,3.02835223]
[1755510879756,3.0,181.64,181.55,3.02835223]
[1755510880064,3.0,181.62,181.55,3.02835223]
[1755510881367,150.8,181.68,181.55,3.02835223]
[1755510881563,8.54436541,181.67,181.55,3.02835223]
[1755510881765,3.0,181.65,181.57,2.99]
[1755510882168,3.0,181.65,181.6,2.99]
[1755510882367,3.0,181.64,181.6,2.99]
[1755510883870,3.0,181.67,181.6,2.99]
[1755510884069,3.97743747,181.66,181.6,2.99]
[1755510884272,3.0,181.63,181.6,2.99]
[1755510885567,3.0,181.63,181.62,2.99]
[1755510886473,3.0,181.65,181.62,2.99]
[1755510886871,3.0,181.65,181.63,2.99]
[1755510887072,3.0,181.65,181.64,2.99]
[1755510889064,147.8,181.68,181.63,2.99]
[1755510889271,3.0,181.67,181.62,3.02654509]
[1755510889772,3.0,181.67,181.62,0.03654509]
[1755510890567,3.0,181.66,181.62,3.02654509]
[1755510890767,3.0,181.64,181.62,0.03654509]
[1755510890970,3.0,181.63,181.62,0.03654509]
[1755510891161,3.0,181.68,181.62,3.02654509]
[1755510891473,3.97597015,181.67,181.62,3.02654509]
[1755510891776,148.57837407,181.69,181.63,2.99]
[1755510891965,3.0,181.64,181.63,2.99]
[1755510892570,148.57837407,181.69,181.62,0.03654509]
[1755510892875,2.96,181.63,181.62,3.01654509]
[1755510894274,2.96,181.64,181.63,2.98]
[1755510895671,148.57837407,181.69,181.62,0.03654509]
[1755510895983,2.96,181.63,181.62,0.03654509]
[1755510896176,151.47496955,181.63,181.57,2.98]
[1755510896377,2.96,181.62,181.5,5.5066]
[1755510896582,2.96,181.6,181.5,2.98]
[1755510897484,0.0409776,181.57,181.5,2.98]
[1755510897684,0.0409776,181.57,181.5,8.4866]
[1755510897888,0.0409776,181.57,181.51,2.98]
[1755510898785,0.0409776,181.57,181.51,8.4862]
[1755510898986,0.0409776,181.57,181.52,2.98]
[1755510899187,3.0009776,181.57,181.51,2.98]
[1755510899581,0.0409776,181.57,181.51,2.98]
[1755510899977,0.0409776,181.57,181.51,8.4862]
[1755510900287,0.0409776,181.57,181.52,2.98]
[1755510900487,2.96,181.56,181.52,2.98]
[1755510901584,2.96,181.56,181.49,5.5069]
[1755510901585,2.96,181.56,181.49,2.98]
[1755510903791,2.96,181.56,181.51,2.98]
[1755510904288,4.54586432,181.62,181.51,2.98]
[1755510904489,2.99877096,181.55,181.51,2.98]
[1755510905688,0.03877096,181.55,181.48,10.05306432]
[1755510905892,2.99877096,181.55,181.49,2.98]
[1755510906096,0.03877096,181.55,181.49,2.98]
[1755510906296,2.99877096,181.55,181.5,8.4866]
[1755510906496,2.99877096,181.55,181.51,2.98]
[1755510906890,0.03877096,181.55,181.51,2.98]
[1755510907796,0.03877096,181.55,181.49,4.54586432]
[1755510907995,0.03877096,181.55,181.5,2.98]
[1755510907996,2.96,181.54,181.5,2.98]
[1755510908399,2.96,181.54,181.48,2.98]
[1755510910200,2.96,181.54,181.45,2.98]
[1755510910604,2.96,181.53,181.45,2.98]
[1755510911007,2.96,181.5,181.45,2.98]
[1755510911205,2.96,181.49,181.45,2.98]
[1755510911405,2.96,181.5,181.46,2.98]
[1755510911901,2.96,181.5,181.42,2.98]
[1755510912096,0.03611172,181.5,181.44,4.54586432]
[1755510912301,0.03611172,181.5,181.47,5.5075]
[1755510912503,0.03611172,181.5,181.48,2.98]
[1755510912701,0.03611172,181.5,181.49,5.507]
[1755510912901,0.03611172,181.5,181.49,8.487]
[1755510919010,0.03611172,181.5,181.49,222.487]
[1755510919208,2.99611172,181.5,181.49,219.507]
[1755510920720,2.99611172,181.5,181.49,214.0]
[1755510920912,2.99611172,181.5,181.49,216.98]
[1755510921621,2.99611172,181.5,181.49,214.0]
[1755510921916,2.99611172,181.5,181.46,2.98]
[1755510922721,2.99611172,181.5,181.43,3.03]
[1755510923220,2.99611172,181.5,181.42,266.70191065]
[1755510923221,2.97,181.49,181.47,3.03]
[1755510923414,2.97,181.49,181.48,3.03]
[1755510924618,2.97,181.49,181.43,3.03]
[1755510925016,2.97,181.49,181.42,266.70191065]
[1755510925216,2.97,181.49,181.43,3.03]
[1755510926021,2.97,181.47,181.46,3.03]
[1755510927017,2.97,181.46,181.44,3.03]
[1755510927223,2.97,181.46,181.45,3.03]
[1755510927720,2.97,181.46,181.43,5.5087]
[1755510928025,2.97,181.46,181.42,480.70191065]
[1755510928026,2.97,181.46,181.42,114.89604633]
[1755510928227,2.97,181.46,181.42,3.03]
[1755510928424,2.97,181.46,181.41,3.03]
[1755510928829,2.97,181.46,181.42,3.03]
[1755510930527,2.97,181.46,181.43,3.03]
[1755510931226,0.04074719,181.47,181.4,147.18]
[1755510931621,2.97,181.46,181.41,3.03]
[1755510931818,2.97,181.46,181.41,5.5094]
[1755510932322,2.97,181.46,181.43,3.03]
[1755510933019,2.97,181.46,181.4,152.6896]
[1755510933020,2.97,181.46,181.4,3.03]
[1755510933425,2.97,181.46,181.4,8.5396]
[1755510933630,2.97,181.46,181.42,3.03]
[1755510933936,2.97,181.46,181.43,3.03]
[1755510934229,0.04074719,181.47,181.38,218.54586432]
[1755510934529,2.97,181.45,181.44,3.03]
[1755510935137,2.97,181.46,181.41,3.03]
[1755510935620,2.97,181.5,181.42,3.03]
[1755510935821,0.03522779,181.45,181.42,3.03]
[1755510936023,80.376744,181.65,181.45,5.508]
[1755510936024,2.97,181.56,181.45,5.508]
[1755510936326,4.54586432,181.54,181.45,214.0]
[1755510936529,2.97,181.53,181.45,214.0]
[1755510936729,7.51586432,181.51,181.45,214.0]
[1755510936922,4.54586432,181.51,181.42,3.03]
[1755510937120,2.97,181.5,181.42,3.03]
[1755510937526,2.97,181.5,181.46,0.03848812]
[1755510940235,2.97,181.5,181.41,3.03]
[1755510940441,3.01122128,181.5,181.41,3.03]
[1755510944139,4.54586432,181.48,181.41,3.03]
[1755510944333,2.97,181.46,181.41,3.03]
[1755510944929,0.04178187,181.45,181.41,3.03]
[1755510945132,0.04178187,181.45,181.35,4.54586432]
[1755510945325,2.97,181.43,181.42,3.03]
[1755510947031,2.97,181.44,181.38,5.5103]
[1755510947238,2.97,181.44,181.43,3.03]
[1755510949041,2.97,181.44,181.41,3.03]
[1755510949239,2.97,181.43,181.42,3.03]
[1755510952341,2.97,181.43,181.37,3.04]
[1755510952538,2.97,181.43,181.38,3.04]
[1755510952843,2.97,181.43,181.39,3.04]
[1755510953342,0.03774298,181.44,181.33,6.07346397]
[1755510953539,4.54586432,181.42,181.29,6.07346397]
[1755510953745,3.12,181.41,181.3,3.04]
[1755510954041,0.03998729,181.37,181.34,10.05726432]
[1755510954247,3.15998729,181.37,181.32,3.04]
[1755510954442,3.12,181.4,181.32,3.04]
[1755510954749,0.04081972,181.36,181.29,3.04]
[1755510954946,3.12,181.35,181.29,3.04]
[1755510955246,4.54586432,181.35,181.22,6.07346397]
[1755510955446,3.16144902,181.34,181.24,3.04]
[1755510955642,3.16144902,181.34,181.21,11.58866397]
[1755510955839,3.12,181.34,181.22,3.04]
[1755510956241,3.12,181.28,181.22,3.04]
[1755510959645,0.04233951,181.29,181.22,3.04]
[1755510960058,0.04233951,181.29,181.24,3.04]
[1755510960254,3.12,181.28,181.24,3.04]
[1755510960451,3.12,181.28,181.24,217.04]
[1755510960755,0.04233951,181.29,181.26,3.04]
[1755510961344,0.04233951,181.29,181.26,8.5539]
[1755510961544,0.04233951,181.29,181.26,3.04]
[1755510961749,3.16233951,181.29,181.25,214.0]
[1755510961944,3.12,181.28,181.25,217.04]
[1755510962148,0.04233951,181.29,181.25,217.04]
[1755510962445,3.12,181.27,181.26,3.04]
[1755510962950,3.12,181.28,181.25,214.0]
[1755510963353,3.12,181.28,181.27,3.04]
[1755510964059,0.04233951,181.29,181.28,3.04]
[1755510965257,3.16233951,181.29,181.28,3.04]
[1755510966559,0.04233951,181.29,181.28,3.04]
[1755510967260,0.04233951,181.29,181.28,8.5533]
[1755510967558,0.04233951,181.29,181.28,3.04]
[1755510977158,0.04233951,181.29,181.27,3.04]
[1755510977358,3.12,181.28,181.27,3.04]
[1755510977659,0.04233951,181.29,181.27,3.04]
[1755510978164,0.04233951,181.29,181.27,214.0]
[1755510978373,0.04233951,181.29,181.28,3.04]
[1755510981464,3.16233951,181.29,181.28,3.04]
[1755510982565,0.04233951,181.29,181.28,3.04]
[1755510985873,3.02233951,181.29,181.28,3.04]
[1755510986471,0.04233951,181.29,181.28,3.04]
[1755510987272,0.04233951,181.29,181.28,222.5533]
[1755510987475,0.04233951,181.29,181.28,217.04]
[1755510990578,0.04233951,181.29,181.28,222.5533]
[1755510996178,2.98,181.37,181.33,5.5118]
[1755510996383,12.19455589,181.52,181.33,5.5118]
[1755510996384,149.12,181.46,181.34,3.1]
[1755510996682,2.98,181.44,181.34,3.1]
[1755510996981,2.98,181.42,181.34,3.1]
[1755510997583,2.98,181.4,181.36,0.04015108]
[1755510997885,4.59468236,181.39,181.36,0.04015108]
[1755510998081,2.98,181.41,181.3,8.6127]
[1755510998277,2.98,181.39,181.36,0.03911164]
[1755510999076,2.98,181.37,181.36,0.03911164]
[1755511003588,2.98,181.41,181.36,3.13911164]
[1755511003781,2.98,181.39,181.36,3.13911164]
[1755511004486,2.98,181.39,181.36,0.03911164]
[1755511005690,2.98,181.39,181.36,3.13911164]
[1755511006479,2.98,181.39,181.36,0.03911164]
[1755511010087,2.98,181.39,181.36,3.13911164]
[1755511011392,2.98,181.39,181.36,0.03911164]
[1755511014894,2.89,181.37,181.36,0.03911164]
[1755511019398,6.7776863,181.37,181.36,0.03911164]
[1755511022103,11.33934859,181.37,181.36,0.03911164]
[1755511024808,3.8876863,181.37,181.36,3.12911164]
[1755511025105,6.82006464,181.37,181.36,0.03911164]
[1755511025406,11.38262347,181.37,181.36,0.03911164]
[1755511026500,11.38262347,181.37,181.36,3.12911164]
[1755511027499,6.82006464,181.37,181.36,3.12911164]
[1755511027703,11.38342972,181.37,181.36,3.12911164]
[1755511033917,11.38624809,181.37,181.36,3.12911164]
[1755511035013,3.93006464,181.37,181.36,3.12911164]
[1755511035315,6.82006464,181.39,181.36,3.12911164]
[1755511035516,8.49596092,181.38,181.36,3.12911164]
[1755511035710,3.93006464,181.37,181.36,3.12911164]
[1755511036308,6.82006464,181.37,181.36,3.12911164]
[1755511038006,3.93006464,181.37,181.36,3.12911164]
[1755511038206,6.82006464,181.37,181.36,3.12911164]
[1755511038514,3.93006464,181.37,181.36,3.12911164]
[1755511040914,3.93006464,181.38,181.36,3.12911164]
[1755511041114,3.93006464,181.37,181.36,3.12911164]
[1755511042413,6.1452588,181.44,181.36,3.12911164]
[1755511042414,3.03,181.41,181.36,3.12911164]
[1755511042614,8.50369319,181.4,181.36,3.12911164]
[1755511042917,3.93607495,181.39,181.36,3.12911164]
[1755511043113,3.93607495,181.38,181.36,3.12911164]
[1755511043309,145.1,181.42,181.36,3.12911164]
[1755511043510,8.50231135,181.41,181.36,3.12911164]
[1755511043709,11.5315336,181.4,181.36,3.12911164]
[1755511043920,3.93505064,181.39,181.36,3.12911164]
[1755511044310,145.1,181.42,181.36,3.12911164]
[1755511044506,8.49974372,181.41,181.36,3.12911164]
[1755511044712,6.9642884,181.4,181.36,3.12911164]
[1755511044913,3.03,181.4,181.36,3.12911164]
[1755511045416,452.86985531,181.45,181.36,3.12911164]
[1755511045723,3.03,181.43,181.36,3.12911164]
[1755511045924,3.93325008,181.42,181.36,3.12911164]
[1755511046218,3.93325008,181.41,181.36,3.12911164]
[1755511046524,3.03,181.43,181.36,3.12911164]
[1755511046825,6.96202123,181.42,181.36,3.12911164]
[1755511047022,3.93202123,181.41,181.36,3.12911164]
[1755511047225,148.07,181.44,181.36,3.12911164]
[1755511047416,8.44188699,181.43,181.37,3.0]
[1755511047722,145.04,181.44,181.37,3.0]
[1755511047920,3.93045809,181.43,181.37,217.0]
[1755511048117,145.04,181.44,181.4,3.0]
[1755511048718,145.04,181.44,181.4,3.04037868]
[1755511049525,145.04,181.44,181.4,0.04037868]
[1755511049725,148.07,181.44,181.41,3.0]
[1755511049913,145.04,181.44,181.41,3.0]
[1755511050114,148.07,181.44,181.41,3.0]
[1755511051524,145.04,181.44,181.41,3.0]
[1755511051827,148.07,181.44,181.41,3.0]
[1755511052828,3.03,181.43,181.41,3.0]
[1755511053627,145.04,181.44,181.41,3.0]
[1755511053830,148.07,181.44,181.41,3.0]
[1755511055632,145.04,181.44,181.41,3.0]
[1755511055928,3.03,181.43,181.41,3.0]
[1755511057233,148.07,181.44,181.41,3.0]
[1755511058634,145.04,181.44,181.41,3.0]
[1755511058835,3.03,181.43,181.41,3.0]
[1755511060234,145.04,181.44,181.41,3.0]
[1755511060435,148.07,181.44,181.41,3.0]
[1755511060940,3.03,181.43,181.41,3.0]
[1755511061240,145.04,181.44,181.41,3.0]
[1755511061241,148.07,181.44,181.41,3.0]
[1755511061534,3.03,181.46,181.41,3.0]
[1755511061937,3.03,181.46,181.43,3.0]
[1755511062135,0.95931194,181.5,181.43,3.0]
[1755511062638,3.03,181.48,181.43,3.0]
[1755511063031,3.03,181.48,181.42,0.04174661]
[1755511063236,3.03,181.48,181.43,3.0]
[1755511065244,3.03,181.49,181.43,3.0]
[1755511067636,4.54586432,181.46,181.42,0.04174661]
[1755511067837,3.03,181.45,181.42,0.04174661]
[1755511068045,3.03,181.43,181.36,3.0]
[1755511069444,0.03547603,181.41,181.36,3.0]
[1755511069747,3.03,181.39,181.36,3.0]
[1755511069951,0.03547603,181.41,181.36,3.0]
[1755511070147,3.03,181.38,181.36,3.0]
[1755511071243,3.03,181.4,181.33,3.0]
[1755511072053,3.03,181.37,181.33,3.0]
[1755511072950,3.03,181.37,181.34,3.07]
[1755511073750,3.07235263,181.37,181.3,3.07]
[1755511074143,3.03,181.37,181.3,3.07]
[1755511074644,2.9,181.34,181.3,3.07]
[1755511076448,2.9,181.33,181.22,144.38]
[1755511076655,2.9,181.32,181.2,3.07]
[1755511076848,2.9,181.32,181.18,116.24196495]
[1755511076849,2.9,181.32,181.23,3.07]
[1755511077153,0.04053951,181.28,181.23,3.07]
[1755511077353,2.94053951,181.28,181.23,3.07]
[1755511078552,0.04053951,181.28,181.25,3.07]
[1755511079851,0.04053951,181.28,181.26,4.54586432]
[1755511080152,0.04053951,181.28,181.27,3.07]
[1755511080353,0.04053951,181.28,181.27,8.5836]
[1755511080742,2.9,181.34,181.27,3.63]
[1755511080942,374.92586432,181.42,181.27,3.07]
[1755511081140,2.9,181.36,181.3,3.07]
[1755511081347,2.9,181.38,181.33,3.07]
[1755511081552,2.9,181.41,181.33,3.07]
[1755511081944,2.9,181.41,181.35,0.03726807]
[1755511082550,2.9,181.39,181.35,0.03726807]
[1755511083153,2.9,181.39,181.35,3.10726807]
[1755511083753,2.9,181.38,181.35,0.03726807]
[1755511084550,2.9,181.38,181.35,3.10726807]
[1755511084749,2.9,181.37,181.36,3.07]
[1755511085351,2.9,181.37,181.35,0.03726807]
[1755511087452,4.54586432,181.36,181.35,0.03726807]
[1755511087662,2.9,181.35,181.29,3.07]
[1755511087953,2.9,181.34,181.23,5.5147]
[1755511088257,2.9,181.34,181.27,3.07]
[1755511088957,0.03753808,181.32,181.23,214.0]
[1755511089151,2.9,181.31,181.21,144.24]
[1755511089359,2.9,181.31,181.2,5.5157]
[1755511089553,2.9,181.31,181.21,3.07]
[1755511089949,2.94192224,181.27,181.21,3.07]
[1755511092655,4.54586432,181.26,181.21,3.07]
[1755511092857,2.9,181.25,181.19,3.07]
[1755511093660,0.03985261,181.24,181.19,3.07]
[1755511093856,2.9,181.23,181.2,3.07]
[1755511094060,2.9,181.23,181.13,5.5179]
[1755511094263,2.9,181.22,181.16,3.07]
[1755511094667,0.04042374,181.2,181.1,3.07]
[1755511094959,2.9,181.19,181.1,3.07]
[1755511095164,4.54586432,181.19,181.1,3.07]
[1755511095367,2.9,181.18,181.1,3.07]
[1755511095558,2.9,181.18,181.09,3.07]
[1755511095863,2.9,181.15,181.09,3.07]
[1755511096159,2.9,181.15,181.04,4.54586432]
[1755511096160,2.9,181.15,180.99,3.07]
[1755511096365,2.9,181.15,181.03,4.54586432]
[1755511096554,2.9,181.15,181.04,3.07]
[1755511096753,4.54586432,181.18,181.08,3.07]
[1755511096958,4.54586432,181.23,181.1,3.07]
[1755511097159,2.9,181.22,181.11,0.03630536]
[1755511097564,2.9,181.22,181.1,10.06436432]
[1755511097565,2.9,181.22,181.12,3.07]
[1755511098365,2.9,181.22,181.15,0.04092684]
[1755511098565,2.9,181.22,181.15,3.11092684]
[1755511100866,2.9,181.24,181.15,3.11092684]
[1755511101466,2.9,181.24,181.15,8.62772684]
[1755511101669,2.9,181.24,181.16,3.07]
[1755511103568,3.04,181.22,181.16,3.07]
[1755511104361,3.04,181.22,181.17,0.04112565]
[1755511105068,4.54586432,181.2,181.17,0.04112565]
[1755511105258,3.04,181.19,181.17,0.04112565]
[1755511105465,3.04,181.17,181.12,2.96]
[1755511105670,3.04,181.16,181.04,4.54586432]
[1755511105871,3.04,181.16,181.1,2.96]
[1755511106762,0.03666143,181.15,181.05,5.5201]
[1755511106972,3.04,181.14,181.11,2.96]
[1755511107265,0.03666143,181.15,181.03,4.54586432]
[1755511107465,0.03666143,181.15,181.04,2.96]
[1755511107673,3.04,181.15,181.05,4.54586432]
[1755511107969,0.03701593,181.11,181.06,2.96]
[1755511108369,144.12,181.18,181.06,2.96]
[1755511108370,3.04,181.13,181.06,2.96]
[1755511108670,0.03724467,181.1,181.06,2.96]
[1755511108971,0.03724467,181.1,181.07,2.96]
[1755511109266,0.03724467,181.1,181.08,2.96]
[1755511109468,3.07724467,181.1,181.09,2.96]
[1755511109668,3.04,181.15,181.09,2.96]
[1755511109971,0.04146724,181.11,181.09,2.96]
[1755511110176,3.08146724,181.11,180.96,370.58]
[1755511110371,3.08146724,181.11,181.0,2.96]
[1755511110577,3.04,181.11,181.0,2.96]
[1755511110970,3.04,181.06,181.0,2.96]
[1755511111864,3.04,181.04,181.0,2.96]
[1755511112069,3.04,181.04,180.98,2.96]
[1755511114071,0.03645313,181.05,181.0,2.96]
[1755511114276,0.03645313,181.05,180.99,4.54586432]
[1755511114277,0.03645313,181.05,181.01,5.5213]